fUST/lending_fUST_20240915
["ID","MTS","AMOUNT","RATE_DAILY","PERIOD"]
[338179267,1726363850048,-573.1,0.00021917,2]
[338179268,1726363850060,-3935.39,0.00021917,2]
[338179269,1726363850070,-500.0,0.00021917,2]
[338179270,1726363850081,-1000.0,0.00021917,2]
[338179271,1726363850091,-500.0,0.00021917,2]
[338179272,1726363850101,-2392.03,0.00021917,2]
[338179273,1726363850113,-877.6,0.00021917,2]
[338179274,1726363850123,-4193.68,0.00021917,2]
[338179275,1726363850133,-1045.67,0.00021917,2]
[338179276,1726363850145,-500.0,0.00021917,2]
[338179277,1726363850156,-500.0,0.00021917,2]
[338179278,1726363850165,-500.0,0.00021917,2]
[338179279,1726363850177,-500.0,0.00021917,2]
[338179280,1726363850189,-500.0,0.00021917,2]
[338179281,1726363850199,-500.0,0.00021917,2]
[338179282,1726363850209,-1275.5,0.00021917,2]
[338179283,1726363850219,-1801.75,0.00021917,2]
[338179284,1726363850229,-500.0,0.00021917,2]
[338179285,1726363850238,-500.0,0.00021917,2]
[338179286,1726363850249,-500.0,0.00021917,2]
[338179287,1726363850259,-1740.31,0.00021917,2]
[338179288,1726363850268,-2583.54,0.00021917,2]
[338179289,1726363850278,-500.0,0.00021917,2]
[338179290,1726363850288,-500.0,0.00021917,2]
[338179291,1726363850298,-500.0,0.00021917,2]
[338179292,1726363850308,-500.0,0.00021917,2]
[338179293,1726363850318,-531.25465163,0.00021917,2]
[338179294,1726363850328,-1250.66,0.00021917,2]
[338179295,1726363850339,-1885.85,0.00021917,2]
[338179296,1726363850349,-500.0,0.00021917,2]
[338179297,1726363850359,-2637.99,0.00021917,2]
[338179298,1726363850369,-500.0,0.00021917,2]
[338179299,1726363850380,-793.68,0.00021917,2]
[338179300,1726363850390,-500.0,0.00021917,2]
[338179301,1726363850400,-1842.93,0.00021917,2]
[338179302,1726363850410,-1321.65,0.00021917,2]
[338179303,1726363850420,-1702.66,0.00021917,2]
[338179304,1726363850430,-273.16767877,0.00021917,2]
[338179305,1726363850440,-619.08,0.00021917,2]
[338179306,1726363850450,-574.63,0.00021917,2]
[338179307,1726363850460,-500.0,0.00021917,2]
[338179308,1726363850470,-841.65,0.00021917,2]
[338179309,1726363850480,-2847.95,0.00021917,2]
[338179310,1726363850489,-2852.87,0.00021917,2]
[338179311,1726363850499,-500.0,0.00021917,2]
[338179312,1726363850509,-1283.44,0.00021917,2]
[338179313,1726363850519,-500.0,0.00021917,2]
[338179314,1726363850530,-694.26,0.00021917,2]
[338179315,1726363850540,-1268.61,0.00021917,2]
[338179316,1726363850550,-1475.88,0.00021917,2]
[338179317,1726363850559,-619.32,0.00021917,2]
[338179318,1726363850569,-3269.05,0.00021917,2]
[338179319,1726363850580,-199.539145,0.00021917,2]
[338179320,1726363850590,-635.91,0.00021917,2]
[338179321,1726363850600,-1239.67,0.00021917,2]
[338179322,1726363850610,-199.539145,0.00021917,2]
[338179323,1726363850621,-920.81,0.00021917,2]
[338179324,1726363850631,-1610.77,0.00021917,2]
[338179325,1726363850642,-500.0,0.00021917,2]
[338179326,1726363850652,-500.0,0.00021917,2]
[338179327,1726363850662,-500.0,0.00021917,2]
[338179328,1726363850672,-1379.48,0.00021917,2]
[338179329,1726363850683,-500.0,0.00021917,2]
[338179330,1726363850692,-1385.66,0.00021917,2]
[338179331,1726363850702,-3254.15,0.00021917,2]
[338179332,1726363850713,-500.0,0.00021917,2]
[338179333,1726363850722,-518.06,0.00021917,2]
[338179334,1726363850732,-2930.58,0.00021917,2]
[338179335,1726363850743,-500.0,0.00021917,2]
[338179336,1726363850753,-500.0,0.00021917,2]
[338179337,1726363850763,-500.0,0.00021917,2]
[338179338,1726363850773,-41269.44,0.00021917,2]
[338179339,1726363850783,-3884.5,0.00021917,2]
[338179340,1726363850793,-3231.84,0.00021917,2]
[338179341,1726363850803,-542.61,0.00021917,2]
[338179342,1726363850813,-651.69,0.00021917,2]
[338179343,1726363850823,-506.98,0.00021917,2]
[338179344,1726363850833,-500.0,0.00021917,2]
[338179345,1726363850843,-1375.5,0.00021917,2]
[338179346,1726363850854,-98914.35,0.00021917,2]
[338179347,1726363850864,-2360.96,0.00021917,2]
[338179348,1726363850874,-527.85,0.00021917,2]
[338179349,1726363850884,-286.60829344,0.00021917,2]
[338179350,1726363850899,-500.0,0.00021917,2]
[338179351,1726363850909,-500.0,0.00021917,2]
[338179352,1726363850919,-500.0,0.00021917,2]
[338179353,1726363850929,-500.0,0.00021917,2]
[338179354,1726363850942,-2061.01,0.00021917,2]
[338179355,1726363850952,-500.0,0.00021917,2]
[338179356,1726363850962,-500.0,0.00021917,2]
[338179357,1726363850972,-543.43837147,0.00021917,2]
[338179358,1726363850983,-508.87966621,0.00021917,2]
[338179359,1726363850992,-500.0,0.00021917,2]
[338179360,1726363851003,-500.0,0.00021917,2]
[338179361,1726363851013,-503.68564853,0.00021917,2]
[338179362,1726363851023,-500.0,0.00021917,2]
[338179363,1726363851033,-2836.34,0.00021917,2]
[338179364,1726363851043,-500.0,0.00021917,2]
[338179365,1726363851053,-500.0,0.00021917,2]
[338179366,1726363851062,-500.0,0.00021917,2]
[338179367,1726363851072,-2228.82,0.00021917,2]
[338179368,1726363851082,-11284.52,0.00021917,2]
[338179369,1726363851091,-500.0,0.00021917,2]
[338179370,1726363851101,-502.11034669,0.00021917,2]
[338179371,1726363851111,-254.774127,0.00021917,2]
[338179372,1726363851121,-500.0,0.00021917,2]
[338179373,1726363851131,-968.29,0.00021917,2]
[338179374,1726363851142,-606.97272356,0.00021917,2]
[338179375,1726363851151,-740.35,0.00021917,2]
[338179376,1726363851161,-254.774127,0.00021917,2]
[338179377,1726363851171,-500.0,0.00021917,2]
[338179378,1726363851181,-500.0,0.00021917,2]
[338179379,1726363851191,-500.0,0.00021917,2]
[338179380,1726363851200,-500.0,0.00021917,2]
[338179381,1726363851210,-5500.05,0.00021917,2]
[338179382,1726363851219,-500.0,0.00021917,2]
[338179383,1726363851229,-1789.54,0.00021917,2]
[338179384,1726363851240,-166.666666,0.00021918,2]
[338179385,1726363851250,-500.0,0.00021918,2]
[338179386,1726363851261,-500.0,0.00021918,2]
[338179387,1726363851272,-500.0,0.00021918,2]
[338179388,1726363851284,-577.91539768,0.00021918,2]
[338179389,1726363851294,-199.539145,0.0002192,7]
[338179390,1726363851304,-199.539145,0.0002192,7]
[338179391,1726363851314,-150.0,0.00021924,2]
[338179392,1726363851324,-150.0,0.00021952,2]
[338179393,1726363851334,-548.27284655,0.00021963,3]
[338179394,1726363851347,-569.18210204,0.00021973,2]
[338179395,1726363851357,-500.0,0.00021973,2]
[338179396,1726363851367,-500.0,0.00021973,2]
[338179397,1726363851379,-150.0,0.00021979,2]
[338179398,1726363851390,-480.86760196,0.0002199,2]
[338179399,1726363851400,-2000.0,0.00022,2]
[338179400,1726363851412,-289.58894033,0.00022,2]
[338179401,1726363851422,-200.0,0.00022,2]
[338179402,1726363851434,-150.708476,0.00022,2]
[338179403,1726363851443,-218.71401328,0.00022007,2]
[338179404,1726363851454,-500.0,0.00022024,2]
[338179405,1726363851468,-150.6376957,0.00022091,7]
[338179406,1726363851480,-150.6376957,0.00022091,7]
[338179407,1726363851489,-150.6376957,0.00022091,7]
[338179408,1726363851499,-150.6376957,0.00022091,7]
[338179409,1726363851509,-150.6376957,0.00022091,7]
[338179410,1726363851522,-150.6376957,0.00022091,7]
[338179411,1726363851531,-150.6376957,0.00022091,7]
[338179412,1726363851542,-150.6376957,0.00022091,7]
[338179413,1726363851553,-150.6376957,0.00022091,7]
[338179414,1726363851563,-150.6376957,0.00022091,7]
[338179415,1726363851573,-150.6376957,0.00022091,7]
[338179416,1726363851583,-151.13,0.00022091,7]
[338179417,1726363851593,-361.60546967,0.00022091,7]
[338179418,1726363851602,-361.60546967,0.00022091,7]
[338179419,1726363851612,-361.60546967,0.00022091,7]
[338179420,1726363851621,-361.60546967,0.00022091,7]
[338179421,1726363851631,-361.60546967,0.00022091,7]
[338179422,1726363851642,-361.60546967,0.00022091,7]
[338179423,1726363851651,-361.60546967,0.00022091,7]
[338179424,1726363851661,-361.60546967,0.00022091,7]
[338179425,1726363851670,-361.60546967,0.00022091,7]
[338179426,1726363851682,-361.60546967,0.00022091,7]
[338179427,1726363851692,-361.60546967,0.00022091,7]
[338179428,1726363851702,-361.60546967,0.00022091,7]
[338179429,1726363851712,-361.60546967,0.00022091,7]
[338179430,1726363851722,-361.60546967,0.00022091,7]
[338179431,1726363851732,-361.60546967,0.00022091,7]
[338179432,1726363851742,-361.60546967,0.00022091,7]
[338179433,1726363851751,-361.60546967,0.00022091,7]
[338179434,1726363851762,-164.74018024,0.00022091,7]
[338179435,1726363851771,-164.74018024,0.00022091,7]
[338179436,1726363851781,-164.74018024,0.00022091,7]
[338179437,1726363851791,-164.74018024,0.00022091,7]
[338179438,1726363851801,-164.74018024,0.00022091,7]
[338179439,1726363851811,-164.74018024,0.00022091,7]
[338179440,1726363851822,-164.74018024,0.00022091,7]
[338179441,1726363851832,-164.74018024,0.00022091,7]
[338179442,1726363851843,-164.74018024,0.00022091,7]
[338179443,1726363851854,-165.24,0.00022091,7]
[338179444,1726363851864,-329.55536048,0.00022091,7]
[338179445,1726363851874,-329.55536048,0.00022091,7]
[338179446,1726363851884,-329.55536048,0.00022091,7]
[338179447,1726363851897,-329.55536048,0.00022091,7]
[338179448,1726363851907,-329.55536048,0.00022091,7]
[338179449,1726363851917,-329.55536048,0.00022091,7]
[338179450,1726363851926,-329.55536048,0.00022091,7]
[338179451,1726363851935,-329.55536048,0.00022091,7]
[338179452,1726363851949,-329.55536048,0.00022091,7]
[338179453,1726363851960,-329.55536048,0.00022091,7]
[338179454,1726363851971,-329.55536048,0.00022091,7]
[338179455,1726363851982,-329.55536048,0.00022091,7]
[338179456,1726363851992,-329.55536048,0.00022091,7]
[338179457,1726363852003,-329.55536048,0.00022091,7]
[338179458,1726363852012,-329.55536048,0.00022091,7]
[338179459,1726363852021,-329.55536048,0.00022091,7]
[338179460,1726363852031,-329.55536048,0.00022091,7]
[338179461,1726363852043,-254.774127,0.00022091,7]
[338179462,1726363852054,-254.774127,0.00022091,7]
[338179463,1726363852065,-361.60546967,0.00022141,7]
[338179464,1726363852077,-329.55536048,0.00022141,7]
[338179465,1726363852088,-297.5424164,0.00022164,2]
[338179466,1726363852099,-500.0,0.00022173,2]
[338179467,1726363852110,-178.65905953,0.00022173,2]
[338179468,1726363852121,-287.18688647,0.00022173,2]
[338179469,1726363852132,-7127.54700515,0.00022181,3]
[338179470,1726363852142,-61067.5935017,0.00022181,3]
[338179471,1726363852154,-500.0,0.00022191,2]
[338179472,1726363852166,-500.0,0.00022191,2]
[338179473,1726363852179,-500.0,0.00022191,2]
[338179474,1726363852189,-569.49625825,0.00022191,2]
[338179475,1726363852199,-500.0,0.00022191,2]
[338179476,1726363852208,-500.0,0.00022191,2]
[338179477,1726363852218,-500.0,0.00022191,2]
[338179478,1726363852230,-500.0,0.00022191,2]
[338179479,1726363852240,-500.0,0.00022191,2]
[338179480,1726363852250,-503.55309976,0.00022191,2]
[338179481,1726363852260,-500.0,0.00022191,2]
[338179482,1726363852270,-579.28,0.00022191,2]
[338179483,1726363852282,-500.0,0.00022191,2]
[338179484,1726363852291,-500.0,0.00022191,2]
[338179485,1726363852301,-500.0,0.00022191,2]
[338179486,1726363852312,-500.0,0.00022191,2]
[338179487,1726363852325,-500.0,0.00022191,2]
[338179488,1726363852334,-71.38012697,0.00022191,2]
[338179489,1726363852539,-17.17680155,0.00021917,2]
[338179490,1726363853846,-960.56319845,0.00021917,2]
[338179491,1726363853857,-428.61987303,0.00022191,2]
[338179492,1726363853868,-500.0,0.00022191,2]
[338179493,1726363853878,-645.46805911,0.00022191,2]
[338179494,1726363853890,-308.66696543,0.00022191,2]
[338179495,1726363853902,-500.0,0.00022191,2]
[338179496,1726363853912,-500.0,0.00022191,2]
[338179497,1726363853922,-500.0,0.00022191,2]
[338179498,1726363853932,-500.0,0.00022191,2]
[338179499,1726363853949,-500.0,0.00022191,2]
[338179500,1726363853960,-201.74180907,0.00022191,2]
[338179501,1726363853972,-500.0,0.00022191,2]
[338179502,1726363853982,-500.0,0.00022191,2]
[338179503,1726363853992,-500.0,0.00022191,2]
[338179504,1726363854002,-501.04321213,0.00022191,2]
[338179505,1726363854012,-679.12,0.00022191,2]
[338179506,1726363854022,-876.2,0.00022191,2]
[338179507,1726363854031,-500.0,0.00022191,2]
[338179508,1726363854040,-500.0,0.00022191,2]
[338179509,1726363854050,-500.0,0.00022191,2]
[338179510,1726363854059,-556.23,0.00022191,2]
[338179511,1726363854069,-500.0,0.00022191,2]
[338179512,1726363854078,-500.0,0.00022191,2]
[338179513,1726363854089,-530.38,0.00022191,2]
[338179514,1726363854099,-500.0,0.00022191,2]
[338179515,1726363854108,-500.0,0.00022191,2]
[338179516,1726363854118,-486.64594078,0.00022191,2]
[338179525,1726364245953,10000.0,0.00014,2]
[338179526,1726364259548,10000.0,0.00014,2]
[338179527,1726364266410,10000.0,0.00014,2]
[338179529,1726364273529,10000.0,0.00014,2]
[338179530,1726364277555,185.99964,0.00013699,2]
[338179532,1726364290163,4022.4,0.00014,2]
[338179555,1726364378722,-1000.0,0.00026,30]
[338179556,1726364378786,-158.76,0.000266,31]
[338179557,1726364378824,-9969.79,0.00027,120]
[338179558,1726364378852,-290.0,0.00027,120]
[338179559,1726364378892,-981.87,0.00027397,120]
[338179560,1726364378919,-981.87,0.00027397,120]
[338179561,1726364378946,-981.87,0.00027397,120]
[338179562,1726364378973,-981.87,0.00027397,120]
[338179563,1726364379001,-981.87,0.00027397,120]
[338179564,1726364379027,-981.87,0.00027397,120]
[338179565,1726364379052,-981.87,0.00027397,120]
[338179566,1726364379078,-981.87,0.00027397,120]
[338179567,1726364379323,-981.87,0.00027397,120]
[338179568,1726364379351,-981.87,0.00027397,120]
[338179569,1726364379378,-981.87,0.00027397,120]
[338179570,1726364379405,-981.87,0.00027397,120]
[338179571,1726364379430,-981.87,0.00027397,120]
[338179572,1726364379457,-981.87,0.00027397,120]
[338179573,1726364379482,-981.87,0.00027397,120]
[338179574,1726364379507,-981.87,0.00027397,120]
[338179575,1726364379533,-981.87,0.00027397,120]
[338179576,1726364379559,-981.87,0.00027397,120]
[338179577,1726364379585,-981.87,0.00027397,120]
[338179578,1726364379612,-981.87,0.00027397,120]
[338179579,1726364379637,-981.87,0.00027397,120]
[338179580,1726364379671,-981.87,0.00027671,120]
[338179581,1726364379708,-981.87,0.00027945,120]
[338179582,1726364379740,-500.0,0.00028,30]
[338179583,1726364379768,-500.0,0.00028,30]
[338179584,1726364379794,-500.0,0.00028,30]
[338179585,1726364379820,-500.0,0.00028,30]
[338179586,1726364379845,-500.0,0.00028,30]
[338179587,1726364379872,-944.38793135,0.00028,30]
[338179588,1726364379899,-500.0,0.00028,30]
[338179589,1726364379925,-500.0,0.00028,30]
[338179590,1726364379952,-500.0,0.00028,30]
[338179591,1726364379978,-152.0,0.00028,30]
[338179592,1726364380007,-500.0,0.00028,30]
[338179593,1726364380034,-500.0,0.00028,30]
[338179594,1726364380060,-500.0,0.00028,30]
[338179595,1726364380097,-500.0,0.00028,30]
[338179596,1726364380124,-739.47520126,0.00028,30]
[338179597,1726364380150,-1768.49,0.00028,120]
[338179598,1726364380177,-500.0,0.00028,30]
[338179599,1726364380206,-981.93295011,0.00028219,120]
[338179600,1726364380238,-169.252308,0.00028493,120]
[338179601,1726364380264,-116131.65490785,0.00029,30]
[338179602,1726364380289,-9707.6790629,0.00029,30]
[338179603,1726364380319,-158.76,0.000294,31]
[338179604,1726364380347,-158.76,0.000294,31]
[338179605,1726364380374,-300.0,0.0003,120]
[338179606,1726364380400,-4355.59,0.00030106,30]
[338179607,1726364380425,-2962.6166,0.00030389,30]
[338179608,1726364380451,-150.0,0.00031,120]
[338179609,1726364380477,-1000.0,0.00031,31]
[338179610,1726364380503,-1448.42296432,0.00031818,46]
[338179611,1726364380529,-6455.60322263,0.00031945,120]
[338179612,1726364380554,-3000.0,0.00032,47]
[338179613,1726364380580,-500.0,0.00032,120]
[338179614,1726364380606,-1283.00246453,0.00032,120]
[338179615,1726364380636,-158.76,0.000322,31]
[338179616,1726364380664,-158.76,0.000322,31]
[338179617,1726364380690,-1018.3171,0.00032389,30]
[338179618,1726364380717,-160.409,0.000325,120]
[338179619,1726364380744,-160.409,0.000325,120]
[338179620,1726364380770,-160.409,0.000325,120]
[338179621,1726364380795,-160.409,0.000325,120]
[338179622,1726364380820,-160.409,0.000325,120]
[338179623,1726364380847,-1000.0,0.00032876,120]
[338179624,1726364380875,-1000.0,0.00032876,30]
[338179625,1726364380902,-1000.0,0.00032876,30]
[338179626,1726364380928,-965.12060506,0.00032876,30]
[338179627,1726364380956,-5000.0,0.00032876,120]
[338179628,1726364380984,-5000.0,0.00032876,120]
[338179629,1726364381012,-5000.0,0.00032876,120]
[338179630,1726364381040,-5000.0,0.00032876,120]
[338179631,1726364381069,-971.3162157,0.00032876,120]
[338179632,1726364381099,-2969.02,0.00032876,30]
[338179633,1726364381131,-2969.02,0.00032876,30]
[338179634,1726364381159,-2969.02,0.00032876,30]
[338179635,1726364381191,-2969.02,0.00032876,30]
[338179636,1726364381220,-2969.02,0.00032876,30]
[338179637,1726364381247,-2969.02,0.00032876,30]
[338179638,1726364381274,-2969.02,0.00032876,30]
[338179639,1726364381300,-2969.02,0.00032876,30]
[338179640,1726364381328,-2969.02,0.00032876,30]
[338179641,1726364381354,-2969.02,0.00032876,30]
[338179642,1726364381380,-2969.02,0.00032876,30]
[338179643,1726364381405,-2969.02,0.00032876,30]
[338179644,1726364381430,-2969.02,0.00032876,30]
[338179645,1726364381457,-2969.02,0.00032876,30]
[338179646,1726364381484,-2969.02,0.00032876,30]
[338179647,1726364381509,-2969.02,0.00032876,30]
[338179648,1726364381535,-2969.02,0.00032876,30]
[338179649,1726364381562,-2969.02,0.00032876,30]
[338179650,1726364381589,-2969.02,0.00032876,30]
[338179651,1726364381615,-2969.02,0.00032876,30]
[338179652,1726364381641,-2969.02,0.00032876,30]
[338179653,1726364381667,-2969.02,0.00032876,30]
[338179654,1726364381692,-2969.02,0.00032876,30]
[338179655,1726364381718,-2969.09319917,0.00032876,30]
[338179656,1726364381745,-1000.0,0.00033,120]
[338179657,1726364381771,-3000.0,0.00033,66]
[338179658,1726364381796,-25767.68715793,0.00033,120]
[338179659,1726364381825,-1000.0,0.00033835,120]
[338179660,1726364381852,-500.0,0.00034,120]
[338179661,1726364381878,-1006.17527961,0.00034,30]
[338179662,1726364381906,-2000.0,0.00034246,118]
[338179663,1726364381932,-2000.0,0.00034246,118]
[338179664,1726364381957,-2000.0,0.00034246,118]
[338179665,1726364381982,-2000.0,0.00034246,118]
[338179666,1726364382008,-2000.0,0.00034246,118]
[338179667,1726364382032,-2000.0,0.00034246,118]
[338179668,1726364382058,-2000.0,0.00034246,118]
[338179669,1726364382258,-2000.0,0.00034246,118]
[338179670,1726364382285,-2000.0,0.00034246,118]
[338179671,1726364382311,-1019.16672007,0.00034246,118]
[338179672,1726364382338,-1000.0,0.00034794,120]
[338179673,1726364382365,-1000.0,0.00035,120]
[338179674,1726364382390,-1000.0,0.00035,120]
[338179675,1726364382415,-480.0,0.00035,30]
[338179676,1726364382441,-3494.999999,0.00035,120]
[338179677,1726364382469,-158.76,0.00035,31]
[338179678,1726364382496,-158.76,0.00035,31]
[338179679,1726364382522,-699.17,0.00035616,120]
[338179680,1726364382548,-699.17,0.00035616,120]
[338179681,1726364382573,-699.17,0.00035616,120]
[338179682,1726364382599,-699.17,0.00035616,120]
[338179683,1726364382624,-699.17,0.00035616,120]
[338179684,1726364382650,-699.17,0.00035616,120]
[338179685,1726364382677,-699.17,0.00035616,120]
[338179686,1726364382703,-699.17,0.00035616,120]
[338179687,1726364382733,-699.17,0.00035616,120]
[338179688,1726364382760,-699.17,0.00035616,120]
[338179689,1726364382787,-699.17,0.00035616,120]
[338179690,1726364382814,-699.17,0.00035616,120]
[338179691,1726364382841,-699.17,0.00035616,120]
[338179692,1726364382869,-699.17,0.00035616,120]
[338179693,1726364382896,-699.17,0.00035616,120]
[338179694,1726364382923,-699.17,0.00035616,120]
[338179695,1726364382948,-699.17,0.00035616,120]
[338179696,1726364382974,-699.17,0.00035616,120]
[338179697,1726364383000,-699.17,0.00035616,120]
[338179698,1726364383026,-699.17,0.00035616,120]
[338179699,1726364383052,-699.17,0.00035616,120]
[338179700,1726364383082,-699.17,0.00035616,120]
[338179701,1726364383108,-699.17,0.00035616,120]
[338179702,1726364383138,-699.23791086,0.00035616,120]
[338179703,1726364383169,-187.983767,0.00035616,120]
[338179704,1726364383199,-502.0,0.0003566,120]
[338179705,1726364383229,-1000.0,0.00035753,120]
[338179706,1726364383258,-3000.0,0.00036,113]
[338179707,1726364383288,-500.0,0.00036,120]
[338179708,1726364383317,-10000.0,0.000365,30]
[338179709,1726364383346,-1000.0,0.00036712,120]
[338179710,1726364383374,-1393.98,0.00036898,50]
[338179711,1726364383401,-1000.0,0.00037,120]
[338179712,1726364383429,-3691.93429478,0.00037,30]
[338179713,1726364383458,-1000.0,0.00037671,120]
[338179714,1726364383485,-5000.0,0.00037756,62]
[338179715,1726364383517,-158.76,0.000378,31]
[338179716,1726364383549,-158.76,0.000378,31]
[338179717,1726364383587,-158.76,0.000378,31]
[338179718,1726364383615,-158.76,0.000378,31]
[338179719,1726364383643,-158.76,0.000378,31]
[338179720,1726364383671,-158.76,0.000378,31]
[338179721,1726364383700,-158.76,0.000378,31]
[338179722,1726364383730,-158.76,0.000378,31]
[338179723,1726364383758,-500.0,0.00038,120]
[338179724,1726364383786,-1300.0,0.00038,30]
[338179725,1726364383816,-2566.86,0.0003828,48]
[338179726,1726364383845,-2813.97,0.00038356,120]
[338179727,1726364383875,-2813.97,0.00038356,120]
[338179728,1726364383902,-2813.97,0.00038356,120]
[338179729,1726364383931,-2813.97,0.00038356,120]
[338179730,1726364383958,-2813.97,0.00038356,120]
[338179731,1726364383984,-2813.97,0.00038356,120]
[338179732,1726364384011,-2813.97,0.00038356,120]
[338179733,1726364384038,-2813.97,0.00038356,120]
[338179734,1726364384066,-2813.97,0.00038356,120]
[338179735,1726364384093,-2813.97,0.00038356,120]
[338179736,1726364384123,-2813.97,0.00038356,120]
[338179737,1726364384150,-2813.97,0.00038356,120]
[338179738,1726364384177,-2813.97,0.00038356,120]
[338179739,1726364384207,-2813.97,0.00038356,120]
[338179740,1726364384233,-2813.97,0.00038356,120]
[338179741,1726364384261,-2813.97,0.00038356,120]
[338179742,1726364384289,-2813.97,0.00038356,120]
[338179743,1726364384317,-2813.97,0.00038356,120]
[338179744,1726364384343,-2813.97,0.00038356,120]
[338179745,1726364384371,-2813.97,0.00038356,120]
[338179746,1726364384398,-2813.97,0.00038356,120]
[338179747,1726364384431,-2813.97,0.00038356,120]
[338179748,1726364384458,-2813.97,0.00038356,120]
[338179749,1726364384485,-2814.12784667,0.00038356,120]
[338179750,1726364384512,-1131.81,0.00038356,30]
[338179751,1726364384542,-8327.32,0.00038356,120]
[338179752,1726364384574,-10000.0,0.000385,40]
[338179753,1726364384601,-1000.0,0.0003863,120]
[338179754,1726364384629,-1131.81,0.0003863,30]
[338179755,1726364384657,-1131.81,0.00038904,30]
[338179756,1726364384687,-150.0,0.00039,30]
[338179757,1726364384715,-1000.0,0.00039,120]
[338179758,1726364384745,-50000.0,0.00039,30]
[338179759,1726364384775,-3000.0,0.00039,120]
[338179760,1726364384804,-1131.81,0.00039178,30]
[338179761,1726364384836,-172.0840341,0.00039178,30]
[338179762,1726364384864,-1131.81,0.00039452,30]
[338179763,1726364384895,-8031.32377376,0.00039452,30]
[338179764,1726364384924,-1000.0,0.00039589,120]
[338179765,1726364384953,-1131.81,0.00039726,30]
[338179766,1726364384983,-3024.75,0.000399,60]
[338179767,1726364385012,-150.0,0.0004,30]
[338179768,1726364385042,-52114.95830327,0.0004,30]
[338179769,1726364385071,-1000.0,0.0004,30]
[338179770,1726364385098,-1000.0,0.0004,120]
[338179771,1726364385128,-653.32502583,0.0004,120]
[338179772,1726364385156,-6321.59780293,0.0004,120]
[338179773,1726364385351,-500.0,0.0004,120]
[338179774,1726364385381,-200.0,0.0004,120]
[338179775,1726364385410,-15728.10113253,0.0004,30]
[338179776,1726364385440,-1763.0,0.0004,120]
[338179777,1726364385469,-460.23202428,0.0004,120]
[338179778,1726364385500,-4994.17059335,0.0004,120]
[338179779,1726364385529,-1131.81,0.0004,30]
[338179780,1726364385559,-3824.35619361,0.0004,120]
[338179781,1726364385589,-1131.81,0.00040273,30]
[338179782,1726364385620,-8327.32,0.00040273,120]
[338179783,1726364385648,-10000.0,0.000405,50]
[338179784,1726364385678,-1000.0,0.00040547,120]
[338179785,1726364385707,-1131.81,0.00040547,30]
[338179786,1726364385739,-1131.81,0.00040821,30]
[338179787,1726364385767,-15032.18473,0.000409,30]
[338179788,1726364385795,-200.0,0.00041,30]
[338179789,1726364385824,-1000.0,0.00041,30]
[338179790,1726364385853,-1000.0,0.00041,120]
[338179791,1726364385880,-4025.88073758,0.00041,30]
[338179792,1726364385909,-513.681117,0.00041,120]
[338179793,1726364385936,-180.0,0.00041041,31]
[338179794,1726364385966,-1131.81,0.00041095,30]
[338179795,1726364385995,-3124.00152352,0.00041095,120]
[338179796,1726364386028,-1473.25308569,0.0004128,60]
[338179797,1726364386055,-1131.81,0.00041369,30]
[338179798,1726364386084,-1000.0,0.00041506,120]